Cogmind - Beta 16 @@@ ROGUE MODE // 2025.11.23 @ 11:24:44 Player: ChromeKnight Result: Self-destructed Performance ------------- Evolutions (9) 4500 Regions Visited (23) 4600 Robots Destroyed (126) 630 Value Destroyed (11393) 11393 Prototype IDs (27) 540 Alien Tech Used (3) 600 Bonus (15174) 15174 TOTAL SCORE: 37437 Bonus ------- Triggered High Security 500 High Alert Combat Kills 1987 Follower Combat Kills 5887 Entered Garrisons 1800 Used RIF Installer 5000 Cogmind --------- Core Integrity 903/1600 Matter 293/300 Energy 77/150 System Corruption 12% Temperature Cool (0) Movement Core (100) Ox1 Location -1/Access Parts ------- > --- POWER (2) -------- Micro Fission Core > --- PROPULSION (6) --- (None) > --- UTILITY (14) ----- Enhanced Optical Array Advanced Target Analyzer Experimental Core Analyzer Relay Coupler [Specialist] (30) Relay Coupler [Heavy] (9) Relay Coupler [Proto] (15) > --- WEAPON (3) ------- (None) > --- INVENTORY (5) ---- Subatomic Replicator Core Cannon Advanced Remote Datajack Peak State ------------ > --- POWER ------------ Improved Quantum Reactor > --- PROPULSION ------- Myomer Leg Antigrav System Antigrav System Improved Antigrav System Improved Antigrav System Improved Antigrav System > --- UTILITY ---------- Experimental Heat Sink Enhanced Optical Array Advanced Signal Interpreter Experimental Targeting Computer Advanced Target Analyzer Advanced Target Analyzer Experimental Core Analyzer Improved Armor Integrity Analyzer Relay Coupler [C] Relay Coupler [C] Relay Coupler [Specialist] Relay Coupler [Heavy] Relay Coupler [Proto] Relay Coupler [Proto] > --- WEAPON ----------- Advanced Remote Datajack Sigix Broadsword > --- INVENTORY -------- Relay Coupler [C] Subatomic Replicator Core Cannon Advanced Remote Datajack [Rating: 190] Favorites ----------- Power Reinforced Deuterium Engine Engine Reinforced Deuterium Engine Power Core Micro Nuclear Core Reactor Light Antimatter Reactor Propulsion Heavy Armored Exoskeleton Leg Heavy Armored Exoskeleton Wheel Wheel Hover Unit Improved Antigrav System Flight Unit Flightbrick Utility Large Storage Unit Device Improved Shield Generator Storage Large Storage Unit Processor Enhanced Optical Array Hackware Relay Coupler [Sentry] Protection Layered Medium Armor Plating Weapon Improved Remote Datajack Energy Gun Shock Rifle Energy Cannon Core Cannon Ballistic Gun Subdweller Machine Gun Launcher Improved Grenade Launcher Special Weapon Improved Remote Datajack Impact Weapon Powered Hammer Slashing Weapon Scythe Piercing Weapon Enhanced Force Lance Build | -11 -10 -10 -8 -8 -8 -8 -7 -7 -7 -7 -6 -6 -5 -5 -4 -4 -3 -3 -2 -2 -1 -1 -1 ------- Run | Yrd Mat Sub Mat Gar Mat Gar Fac Gar Fac Gar Fac Gar Fac Gar Fac Gar Res Qua Res Gar Acc Gar Acc Slots Evolved 18 | . . . 4 . . . 2 . . . 2 . 2 . 2 . 2 . 2 . 2 . . Power 1 | . . . . . . . . . . . . . . . . . . . . . 1 . . Propulsion 4 | . . . 2 . . . . . . . . . . . . . 1 . . . 1 . . Utility 12 | . . . 2 . . . 2 . . . 2 . 2 . 2 . 1 . 1 . . . . Weapon 1 | . . . . . . . . . . . . . . . . . . . 1 . . . . Parts Attached 249 | 6 1 6 10 16 2 15 9 31 . 8 10 26 4 15 1 10 9 4 3 39 4 20 . Power 18 | 1 . 1 . 1 . 2 1 4 . 1 . 1 . . . . . . . 5 . 1 . Engine 5 | 1 . 1 . 1 . . . 1 . . . 1 . . . . . . . . . . . Core 7 | . . . . . . 2 1 3 . . . . . . . . . . . . . 1 . Reactor 6 | . . . . . . . . . . 1 . . . . . . . . . 5 . . . Propulsion 63 | 2 . 2 1 . . . 4 16 . 1 6 10 . . . . 1 1 . 8 3 8 . Treads . | . . . . . . . . . . . . . . . . . . . . . . . . Leg 37 | . . . . . . . . 13 . 1 6 10 . . . . 1 1 . 3 1 1 . Wheel 4 | 2 . 2 . . . . . . . . . . . . . . . . . . . . . Hover 14 | . . . . . . . 4 3 . . . . . . . . . . . 5 2 . . Flight 8 | . . . 1 . . . . . . . . . . . . . . . . . . 7 . Utility 133 | 1 . 1 6 11 2 12 4 8 . 6 4 13 3 15 1 9 7 3 2 15 1 9 . Device 10 | . . 1 . 1 . . . . . . . . . . . 2 . 1 1 3 . 1 . Storage 3 | 1 . . 1 . . . . . . . . . . 1 . . . . . . . . . Processor 12 | . . . 1 1 . . . . . . 1 1 1 . . . . 1 . 5 . 1 . Hackware 80 | . . . 1 4 2 11 4 6 . 5 1 9 1 11 . 6 7 . 1 5 . 6 . Protection 28 | . . . 3 5 . 1 . 2 . 1 2 3 1 3 1 1 . 1 . 2 1 1 . Artifact . | . . . . . . . . . . . . . . . . . . . . . . . . Weapon 35 | 2 1 2 3 4 . 1 . 3 . . . 2 1 . . 1 1 . 1 11 . 2 . Energy Gun 8 | 1 1 . 1 1 . . . . . . . . . . . . . . . 4 . . . Energy Cannon 1 | . . . . . . . . . . . . . . . . . . . . . . 1 . Ballistic Gun 7 | 1 . 1 . . . . . . . . . . . . . . . . . 4 . 1 . Ballistic Cannon . | . . . . . . . . . . . . . . . . . . . . . . . . Launcher 3 | . . . 1 1 . . . . . . . . . . . 1 . . . . . . . Special Weapon 11 | . . 1 . 2 . 1 . 2 . . . 1 1 . . . 1 . . 2 . . . Impact Weapon 1 | . . . . . . . . . . . . . . . . . . . . 1 . . . Slashing Weapon 3 | . . . 1 . . . . 1 . . . . . . . . . . 1 . . . . Piercing Weapon 1 | . . . . . . . . . . . . 1 . . . . . . . . . . . Special Melee Weapon . | . . . . . . . . . . . . . . . . . . . . . . . . Unidentified Prototypes 11 | . . . 1 . . . . . . . . . . . . . . 2 1 6 . 1 . Corrupted Parts 3 | . . . . . . . . . . . . . . . . . . . . 3 . . . System Corruption 7 | . . . . . . . . . . . . . . . . . . . . 7 . . . Parts Lost 75 | . . 4 . 3 . 4 . 11 . . . . . . . . . 1 4 28 . 14 6 Power 7 | . . 1 . . . 1 . 2 . . . . . . . . . . . 2 . 1 . Propulsion 21 | . . 1 . . . . . 7 . . . . . . . . . . . 7 . 1 5 Utility 33 | . . 1 . 3 . 3 . . . . . . . . . . . 1 3 12 . 10 . Weapon 14 | . . 1 . . . . . 2 . . . . . . . . . . 1 7 . 2 1 Highest Loss Streak 16 | . . 3 . 1 . 2 . 6 . . . . . . . . . 1 4 16 . 9 6 To Critical Strikes . | . . . . . . . . . . . . . . . . . . . . . . . . Average Backups 12 | . 2 5 10 13 13 13 13 14 15 14 14 14 12 14 15 14 12 12 10 6 4 3 3 Power . | . . . . . . . . . . . . . . . . . . . . . . . . Propulsion . | . 1 4 3 . . . 2 2 1 . . 2 . . . . . . . . . . . Utility 9 | . . . 2 7 10 11 9 9 12 12 11 10 11 12 14 13 10 8 6 2 1 . . Weapon . | . . 1 3 3 1 . . . . . . . . . . . . . 1 1 1 . 1 Tool/Special . | . . . . . . . . . . . . . . . . . . . . . . . . Unused Backups 35 | . . . 3 9 . 4 . 5 . . 1 5 . 1 . . . 1 . 4 . . 2 Power 2 | . . . . . . . . . . . . . . . . . . . . 2 . . . Propulsion 6 | . . . 3 . . . . 1 . . . 2 . . . . . . . . . . . Utility 17 | . . . . 6 . 3 . 4 . . 1 2 . . . . . . . 1 . . . Weapon 4 | . . . . 3 . . . . . . . 1 . . . . . . . . . . . Tool/Special 6 | . . . . . . 1 . . . . . . . 1 . . . 1 . 1 . . 2 Average Slot Usage (%) 77 | . 85 81 57 61 61 62 92 95 92 99 96 98 81 81 74 77 77 76 71 55 85 71 51 Engine 3 | . 14 6 7 6 7 . . 1 . . . 3 5 4 5 5 4 4 4 . . . . Core 1 | . . . . . . 5 6 5 7 2 . . . . . . . . . . . . 4 Leg 8 | . . . . . . . . 24 30 30 26 24 5 5 5 5 6 9 8 2 . 1 . Hover 1 | . . . . . . . 23 4 . . . . . . . . . . . 6 17 10 . Flight 1 | . . . 6 7 7 7 1 . . . . . . . . . . . . . . 1 20 Device 1 | . . 5 . 2 . . . . . . . . . . . 4 4 4 4 1 4 2 . Storage 5 | . 14 14 7 7 7 7 6 7 7 7 6 6 5 5 5 5 4 4 4 1 . . . Processor 5 | . . . 4 5 . . . . . . 5 6 10 11 10 5 4 4 8 14 28 19 12 Hackware 22 | . . . 6 2 12 14 36 33 30 32 30 30 29 29 26 29 32 32 24 15 22 25 12 Protection 8 | . . . 10 15 14 12 1 3 7 4 5 8 11 10 11 10 9 4 9 2 . 2 . Energy Gun 1 | . 25 18 5 6 . . . . . . . . . . . . . . . . . . . Special Weapon 4 | . . 1 5 1 6 7 6 4 . 6 6 6 5 5 5 4 4 4 2 2 4 2 3 Slashing Weapon 3 | . . . 1 2 7 7 6 7 7 7 6 5 . . . . . . 3 2 4 2 . Piercing Weapon 1 | . . . . . . . . . . . . . 5 5 5 5 4 4 . . . . . Peak Build Rating 190 | 6 6 11 60 62 60 70 70 51 40 52 63 81 92 93 102 114 128 136 155 183 190 185 96 Average Rating 79 | 4 6 7 51 59 59 61 49 43 40 47 58 65 89 92 94 107 120 127 145 113 178 136 93 On Entrance 75 | . 6 6 11 60 57 60 70 48 40 40 49 62 81 92 92 102 111 128 132 136 171 178 88 Avg Prop Armor Cover (%) 3 | . . . . . . . . 5 . . . . . . . . . . . . 3 2 14 Naked Turns . | . . . . . . . . . . . . . . . . . . . . . . . . Heaviest Build 86 | 12 12 14 36 48 42 42 34 48 44 48 51 54 62 63 77 81 75 75 86 84 34 34 10 Greatest Support 118 | 20 20 20 24 24 24 24 36 75 50 60 65 90 90 90 90 90 115 115 108 118 58 58 30 Greatest Overweight (x) 10 | . . 1 1 1 1 1 9 3 . . . . . . . . . . . 8 . 10 2 Average Overweight (x) . | . . . . . 1 1 . . . . . . . . . . . . . . . . . Largest Inventory Capacity 15 | 8 8 8 15 15 15 15 15 15 15 15 15 15 15 15 15 15 15 15 15 15 5 5 5 Average Capacity 13 | 7 8 8 14 15 15 15 14 15 15 15 15 15 15 15 15 15 15 15 15 9 5 5 5 Most Carried 15 | . 7 7 15 15 15 15 15 15 15 15 15 15 14 15 15 15 15 15 15 13 5 5 5 Average Carried 12 | . 2 6 10 13 13 13 13 14 15 14 14 14 12 14 15 14 12 13 11 7 5 4 4 Final Capacity 15 | 8 8 8 15 15 15 15 15 15 15 15 15 15 15 15 15 15 15 15 15 5 5 5 5 Final Carried 15 | . 7 7 14 14 13 15 15 15 15 14 14 14 14 15 15 14 9 15 10 5 5 5 4 Class Distribution -------------------- 62% | Botlord-Mutant 19% | Bothacker-Mutant 15% | Mutant Dominant Class ---------------- Mutant | -10/Materials Mutant | -10/Subcaves Mutant | -8/Materials Mutant | -8/Garrison Bothacker-Mutant | -8/Materials Bothacker-Mutant | -8/Garrison Bothacker-Mutant | -7/Factory Botlord-Mutant | -7/Garrison Botlord-Mutant | -7/Factory Botlord-Mutant | -7/Garrison Botlord-Mutant | -6/Factory Botlord-Mutant | -6/Garrison Botlord-Mutant | -5/Factory Botlord-Mutant | -5/Garrison Botlord-Mutant | -4/Factory Botlord-Mutant | -4/Garrison Botlord-Mutant | -3/Research Botlord-Mutant | -3/Quarantine Botlord-Mutant | -2/Research Botlord-Mutant | -2/Garrison Botlord-Mutant | -1/Access Botlord-Mutant | -1/Garrison Scavenger-Sprinter | -1/Access Resources | -11 -10 -10 -8 -8 -8 -8 -7 -7 -7 -7 -6 -6 -5 -5 -4 -4 -3 -3 -2 -2 -1 -1 -1 ----------- Run | Yrd Mat Sub Mat Gar Mat Gar Fac Gar Fac Gar Fac Gar Fac Gar Fac Gar Res Qua Res Gar Acc Gar Acc Matter Collected 5852 | 189 74 91 120 610 51 392 . 639 . 235 77 716 98 398 66 356 204 346 . 720 56 414 . Remotely . | . . . . . . . . . . . . . . . . . . . . . . . . Salvage Created 6631 | . 74 91 328 1217 46 658 . 816 . 170 . 505 30 151 . . 64 589 . 1010 56 826 . Parts 349 | . 13 9 25 70 2 40 . 33 . 4 . 32 1 9 . . 10 25 . 38 3 35 . Haulers Intercepted 3 | . . . 2 . . . . . . . . . . . . . . 1 . . . . . Recyclers Shooed 1 | . . . . . . . . . . . . . . . . . 1 . . . . . . Parts Field Recycled . | . . . . . . . . . . . . . . . . . . . . . . . . Retrieved Matter . | . . . . . . . . . . . . . . . . . . . . . . . . Parts Self-Destructed 1 | . . 1 . . . . . . . . . . . . . . . . . . . . . Prevented . | . . . . . . . . . . . . . . . . . . . . . . . . Parts Restored . | . . . . . . . . . . . . . . . . . . . . . . . . Kills | -11 -10 -10 -8 -8 -8 -8 -7 -7 -7 -7 -6 -6 -5 -5 -4 -4 -3 -3 -2 -2 -1 -1 -1 ------- Run | Yrd Mat Sub Mat Gar Mat Gar Fac Gar Fac Gar Fac Gar Fac Gar Fac Gar Res Qua Res Gar Acc Gar Acc Combat Hostiles Destroyed 100 | . . 2 2 31 1 13 . 14 . . . 7 1 3 . . . 5 . 13 . 8 . Melee 59 | . . . 1 3 1 12 . 14 . . . 7 1 3 . . . 5 . 7 . 5 . Guns 23 | . . 2 1 14 . . . . . . . . . . . . . . . 4 . 2 . Cannons 1 | . . . . . . . . . . . . . . . . . . . . . . 1 . AOE 13 | . . . . 12 . 1 . . . . . . . . . . . . . . . . . Classes Destroyed 19 | . 2 1 5 4 . 1 . 1 . . . 1 . 2 . . . 1 . 1 . . . Worker 6 | . . . 4 . . . . . . . . . . . . . . 1 . . 1 . . Builder 4 | . 2 . 1 . . . . . . . . . . . . . 1 . . . . . . Tunneler 2 | . 1 . . . . . . . . . . . . . . . 1 . . . . . . Hauler 3 | . . . 2 . . . . . . . . . . . . . . 1 . . . . . Recycler 1 | . . . . . . . . . . . . . . . . . . 1 . . . . . Operator 1 | . . . 1 . . . . . . . . . . . . . . . . . . . . Watcher 4 | . . . . 1 . . . . . . . . . . . . 1 1 . . 1 . . Swarmer 9 | . . . . 6 . 2 . . . . . . 1 . . . . . . . . . . Cutter 3 | . . . . . . . . . . . . . . 1 . . . . . . . 2 . Grunt 48 | . . . 1 17 . 4 . 11 . . . 5 . 1 . . . 1 . 5 . 3 . Brawler 1 | . . . . . . 1 . . . . . . . . . . . . . . . . . Duelist 1 | . . . . . . . . 1 . . . . . . . . . . . . . . . Sentry 9 | . . . 1 6 . . . . . 1 . . . . . . . . . 1 . . . Specialist 5 | . . . . 1 . 1 . 2 . . . . . . . . . . . 1 . . . Hunter 4 | . . . . . . . . . . . . . . 1 . . . 1 . 1 . 1 . Programmer 20 | . . . . 1 1 6 . 1 . . . 1 . . . . . 3 . 5 . 2 . Behemoth 2 | . . . . . . . . . . . . 1 . . . . . . . . . 1 . Executioner 1 | . . . . . . . . . . . . . . . . . . . . 1 . . . Subdweller 2 | . . 2 . . . . . . . . . . . . . . . . . . . . . Best Kill Streak 4 | . 3 2 4 4 1 3 . 2 . . . 2 1 1 . . 2 4 . 3 2 3 . Combat Bots Only 4 | . . 2 1 4 1 3 . 2 . . . 2 1 1 . . . 3 . 3 . 3 . Max Kills in Single Turn 3 | . 1 1 2 3 1 1 . 1 . 1 . 1 1 1 . . 1 1 . 1 1 1 . Gunslinging . | . . . . . . . . . . . . . . . . . . . . . . . . Exploded 3 | . . . . 3 . 1 . . . . . . . . . . . . . . . . . Melee 1 | . . . 1 1 1 1 . 1 . . . 1 1 1 . . . 1 . 1 . 1 . Uniques/NPCs Destroyed . | . . . . . . . . . . . . . . . . . . . . . . . . Combat | -11 -10 -10 -8 -8 -8 -8 -7 -7 -7 -7 -6 -6 -5 -5 -4 -4 -3 -3 -2 -2 -1 -1 -1 -------- Run | Yrd Mat Sub Mat Gar Mat Gar Fac Gar Fac Gar Fac Gar Fac Gar Fac Gar Res Qua Res Gar Acc Gar Acc Hostile Shots Fired 1319 | . . 44 12 119 . 122 9 131 . 22 6 74 14 46 4 27 17 43 31 342 23 204 29 Missed 410 | . . 23 5 36 . 31 4 37 . 9 1 30 4 17 3 4 5 7 10 83 6 80 15 Hits 909 | . . 21 7 83 . 91 5 94 . 13 5 44 10 29 1 23 12 36 21 259 17 124 14 Melee 32 | . . . . . . 5 . 8 . . . 2 . 5 . 7 . . . . . 5 . Projectile 877 | . . 21 7 83 . 86 5 86 . 13 5 42 10 24 1 16 12 36 21 259 17 119 14 AOE 3 | . . . . . . . . . . . . . . . . . 1 1 . . . 1 . Critical Strikes 60 | . . 1 . 4 . 4 . 7 . . . 2 1 6 . 4 . 3 3 15 . 10 . Actively Blocked 2 | . . . . . . . . . . . . . . . . . . . . . . 2 . Part Disruptions 3 | . . . . . . . . 1 . . . . . . . . . . . 2 . . . Damage Taken 18065 | . . 406 99 1163 29 1395 72 1844 . 185 96 889 191 672 75 390 354 755 430 6172 305 2235 308 Core 3189 | . . 86 12 107 . 75 37 510 . 16 20 122 16 63 . 47 . 96 40 1321 37 584 . Absorbed by Shields 786 | . . . . 19 . 33 . . . 18 . . . . . 143 126 276 78 . 24 69 . Redirected to Shielding 208 | . . . 28 77 . . . . . . . . . . . . . . . . . 103 . Ignored by Resistances 222 | . . . 6 104 2 80 5 . . . . . 13 12 . . . . . . . . . Regen/Repaired (Parts) 1617 | . . . . 14 . 126 . . . . . . . 161 9 . 157 33 35 626 80 376 . Core Remaining (%) 68 | 100 . 65 . . . 64 . . . 19 . 83 . 92 . 95 . 92 . 6 . . . Volleys Fired 509 | . 10 14 22 109 7 32 11 16 . 15 15 44 19 21 13 23 28 27 2 56 2 23 . Largest 2 | . 2 2 1 2 1 1 1 1 . 1 1 1 1 1 1 1 1 1 1 2 1 1 . Hottest 300 | . 100 100 100 100 5 5 5 7 . 7 7 7 7 7 7 7 10 10 10 129 10 300 . Shots Fired 573 | . 20 28 22 147 7 32 11 16 . 15 15 44 19 21 13 23 28 27 2 58 2 23 . Gun 245 | . 20 28 20 115 . . . . . . . . . . . . . . . 52 . 10 . Cannon 3 | . . . . . . . . . . . . . . . . . . . . . . 3 . Launcher 15 | . . . . 14 . . . . . . . . . . . 1 . . . . . . . Special 310 | . . . 2 18 7 32 11 16 . 15 15 44 19 21 13 22 28 27 2 6 2 10 . Kinetic 51 | . . 8 . . . . . . . . . . . . . . . . . 33 . 10 . Thermal 66 | . 20 20 2 2 . . . . . . . . . . . . . . . 19 . 3 . Explosive 15 | . . . . 14 . . . . . . . . . . . 1 . . . . . . . Electromagnetic 135 | . . . 20 115 . . . . . . . . . . . . . . . . . . . Robot Hit Streak 16 | . 3 3 4 9 4 8 8 4 . 16 5 16 4 6 13 8 11 8 4 8 10 16 . Robot Miss Streak 4 | . 4 2 4 4 2 4 4 2 . . 2 1 1 2 1 1 2 2 . 3 . 2 . Penetration Max . | . . . . . . . . . . . . . . . . . . . . . . . . Secondary Targets 1 | . . . . 1 . . . . . . . . . . . . . . . . . . . Max Gunslinging Chain 1 | . . . . 1 . . . . . . . . . . . . . . . . . . . Shots Hit Robots 600 | . 10 14 16 101 8 62 7 58 . 22 10 61 15 26 11 19 27 32 3 64 4 30 . Core Hits 168 | . 3 6 12 52 1 16 . 18 . 3 . 11 1 3 . . 3 8 . 19 1 11 . Critical Kills . | . . . . . . . . . . . . . . . . . . . . . . . . Critical Parts Destroyed 2 | . . 1 . . . . . . . . . . . . . . . . . . . 1 . Critical Strikes 32 | . 2 2 . 3 . 5 . 7 . 1 . 2 . 1 . . 1 . . 5 . 3 . Burn 5 | . 2 1 . . . . . . . . . . . . . . . . . 2 . . . Destroy 3 | . . 1 . . . . . . . . . . . . . . . . . . . 2 . Corrupt 3 | . . . . 3 . . . . . . . . . . . . . . . . . . . Sever 19 | . . . . . . 5 . 7 . 1 . 2 . . . . . . . 3 . 1 . Impale 2 | . . . . . . . . . . . . . . 1 . . 1 . . . . . . Melee Attacks 382 | . . . 7 15 3 72 . 66 . 12 1 49 4 31 . 16 5 27 2 48 5 19 . Impact 18 | . . . . . . . . . . . . . . . . . . . . 18 . . . Slashing 281 | . . . 7 15 3 72 . 66 . 12 1 49 . . . . . . 2 30 5 19 . Piercing 83 | . . . . . . . . . . . . . 4 31 . 16 5 27 . . . . . Sneak Attacks 32 | . . . 1 . 1 8 . 2 . 1 . 1 . . . 1 3 4 . 2 1 7 . Combat Hostiles 2 | . . . . . . 1 . 1 . . . . . . . . . . . . . . . Follow-up Attacks . | . . . . . . . . . . . . . . . . . . . . . . . . Damage Inflicted 15895 | . 126 239 430 2923 126 1735 14 1705 . 464 . 1174 61 423 . 143 334 761 87 2732 252 2166 . Guns 2871 | . 126 239 228 1163 . . . . . . . . . . . . . . . 890 . 225 . Cannons 600 | . . . . . . . . . . . . . . . . . . . . . . 600 . Explosions 1672 | . . . 74 1598 . . . . . . . . . . . . . . . . . . . Melee 10698 | . . . 128 162 126 1735 . 1705 . 464 . 1174 54 423 . 143 334 737 87 1833 252 1341 . Ramming 54 | . . . . . . . 14 . . . . . 7 . . . . 24 . 9 . . . Kinetic 876 | . . 114 . . . . . . . . . . . . . . . . . 537 . 225 . Thermal 1437 | . 126 125 74 159 . . . . . . . . . . . . . . . 353 . 600 . Explosive 1439 | . . . . 1439 . . . . . . . . . . . . . . . . . . . Electromagnetic 1391 | . . . 228 1163 . . . . . . . . . . . . . . . . . . . Impact 672 | . . . . . . . . . . . . . . . . . . . . 672 . . . Slashing 8335 | . . . 128 162 126 1735 . 1705 . 464 . 1174 . . . . . . 87 1161 252 1341 . Piercing 1691 | . . . . . . . . . . . . . 54 423 . 143 334 737 . . . . . Highest Corruption 39 | . . . . . . 11 1 1 1 1 . . 1 1 1 1 . 2 . 39 . 7 12 Average Corruption 4 | . . . . . . 6 1 1 1 1 . . 1 1 1 1 . 1 . 27 . 3 7 Corruption Purged . | . . . . . . . . . . . . . . . . . . . . . . . . Corruption Blocked . | . . . . . . . . . . . . . . . . . . . . . . . . Effects 136 | . . . . . . 46 . 12 . 4 . . . 15 . 13 . 3 . 38 . 1 4 Message Errors 30 | . . . . . . 16 . 3 . 1 . . . 1 . 1 . . . 7 . 1 . Matter Fused 35 | . . . . . . 9 . 4 . 1 . . . 5 . 4 . 1 . 10 . . 1 Heat Flow Errors 14 | . . . . . . 5 . . . . . . . 3 . 1 . 1 . 4 . . . Energy Discharges 22 | . . . . . . 4 . 3 . 2 . . . 3 . 2 . . . 6 . . 2 Parts Rejected 2 | . . . . . . 1 . . . . . . . . . 1 . . . . . . . Parts Fused 1 | . . . . . . 1 . . . . . . . . . . . . . . . . . Data Loss (minor) 23 | . . . . . . 8 . 2 . . . . . 1 . 4 . 1 . 6 . . 1 Data Loss (major) 2 | . . . . . . 1 . . . . . . . . . . . . . 1 . . . Alerts 4 | . . . . . . 1 . . . . . . . 2 . . . . . 1 . . . Weapon Failures 3 | . . . . . . . . . . . . . . . . . . . . 3 . . . Overload Shots . | . . . . . . . . . . . . . . . . . . . . . . . . Overflow Damage 996 | . . . . 153 34 74 . 13 . 80 . . . 14 . 13 . 76 7 41 119 372 . Projectiles . | . . . . . . . . . . . . . . . . . . . . . . . . Explosions 153 | . . . . 153 . . . . . . . . . . . . . . . . . . . Melee 843 | . . . . . 34 74 . 13 . 80 . . . 14 . 13 . 76 7 41 119 372 . Knockbacks 3 | . . . . . . . . . . . . . . . . . . . . 3 . . . Impact 3 | . . . . . . . . . . . . . . . . . . . . 3 . . . Kinetic . | . . . . . . . . . . . . . . . . . . . . . . . . Secondary . | . . . . . . . . . . . . . . . . . . . . . . . . Self-Inflicted Damage 111 | . . . . 73 . . 7 . . . . . . . . 31 . . . . . . . Shots 3 | . . . . 2 . . . . . . . . . . . 1 . . . . . . . Rammed 1 | . . . . . . . 1 . . . . . . . . . . . . . . . . Targets Rammed 7 | . . . . . . . 1 . . . . . 1 . . . . 4 . 1 . . . Kicked 6 | . . . . . . . . . . . . . 1 . . . . 4 . 1 . . . Crushed . | . . . . . . . . . . . . . . . . . . . . . . . . Highest Temperature 366 | . 156 26 102 366 . 287 1 7 . 1 2 2 . 205 . 109 . 197 . 246 . 200 177 Average Temperature 111 | . 75 15 31 125 . 139 1 7 . 1 2 2 . 91 . 43 . 131 . 105 . 100 86 Received Heat Transfer 2283 | . . 105 36 516 9 375 18 282 . 27 45 174 36 108 9 61 12 118 100 189 36 9 18 Effects 15 | . . . . 11 . 2 . . . . . . . . . . . . . 2 . . . Energy Bleed 1 | . . . . 1 . . . . . . . . . . . . . . . . . . . Interference 13 | . . . . 9 . 2 . . . . . . . . . . . . . 2 . . . Matter Decay 1 | . . . . 1 . . . . . . . . . . . . . . . . . . . Siege Activations . | . . . . . . . . . . . . . . . . . . . . . . . . Martial Activations . | . . . . . . . . . . . . . . . . . . . . . . . . Shielding Activations . | . . . . . . . . . . . . . . . . . . . . . . . . Robots Disrupted . | . . . . . . . . . . . . . . . . . . . . . . . . Combat Hostiles . | . . . . . . . . . . . . . . . . . . . . . . . . Robots Corrupted 4 | . . . . 2 . . . . . . . . . . . . . . . 2 . . . Combat Hostiles 4 | . . . . 2 . . . . . . . . . . . . . . . 2 . . . Parts Fried 9 | . . . 3 6 . . . . . . . . . . . . . . . . . . . Impact Corruptions 4 | . . . . . . . . . . . . . . . . . . . . 4 . . . Robots Melted . | . . . . . . . . . . . . . . . . . . . . . . . . Combat Hostiles . | . . . . . . . . . . . . . . . . . . . . . . . . Parts Melted 7 | . 1 . 1 . 2 . . . . . . 1 . 1 . . . . . 1 . . . Heat Transferred 1804 | . 518 444 150 100 . . . . . . . . . . . . . . . 592 . . . Parts Sabotaged . | . . . . . . . . . . . . . . . . . . . . . . . . Parts Stolen . | . . . . . . . . . . . . . . . . . . . . . . . . Parts Stripped . | . . . . . . . . . . . . . . . . . . . . . . . . Power Chain Reactions 4 | . . . 1 3 . . . . . . . . . . . . . . . . . . . Alert | -11 -10 -10 -8 -8 -8 -8 -7 -7 -7 -7 -6 -6 -5 -5 -4 -4 -3 -3 -2 -2 -1 -1 -1 ------- Run | Yrd Mat Sub Mat Gar Mat Gar Fac Gar Fac Gar Fac Gar Fac Gar Fac Gar Res Qua Res Gar Acc Gar Acc Maximum Alert Level 5 | . . . . 4 3 4 3 4 2 3 2 4 3 5 3 4 3 5 4 3 2 2 2 Low Security (%) 9 | 100 100 . 100 15 . . . . . . 81 15 . 6 . . . . . . . . . Level 1 10 | . . . . 8 . . . 9 . . 4 11 38 27 . . 18 5 . . . 8 97 Level 2 27 | . . . . 27 29 53 51 53 100 73 14 5 22 11 . 11 18 22 . . 100 91 2 Level 3 29 | . . . . 11 70 30 48 30 . 26 . 31 38 22 100 29 63 16 76 100 . . . Level 4 21 | . . . . 36 . 15 . 7 . . . 35 . 28 . 58 . 40 23 . . . . Level 5 . | . . . . . . . . . . . . . . 3 . . . 1 . . . . . High Security . | . . . . . . . . . . . . . . . . . . 13 . . . . . Max Security . | . . . . . . . . . . . . . . . . . . . . . . . . Peak Influence 2026 | . 10 . 44 1357 763 1438 769 1172 633 815 427 1439 986 1627 896 1585 891 2026 1109 923 472 626 402 Initial 1109 | . . . 2 28 661 456 754 324 615 436 427 93 755 179 854 572 891 399 1109 788 470 366 342 Average 752 | . . . 8 770 714 789 655 673 618 602 130 809 550 810 862 1170 673 1083 1082 833 445 522 345 Influence Increases 14549 | . 15 90 140 1499 201 1302 30 1078 18 479 274 1586 452 1708 94 1313 730 2429 22 436 78 485 90 Destroy 0b10 Robot/C 5600 | . . . 40 620 100 500 . 400 . 260 140 620 180 460 20 560 240 940 20 280 . 220 . Destroy 0b10 Robot/NC 240 | . 15 . 40 5 5 10 . 5 . 10 . 5 5 . . . 55 70 . . 10 5 . Destroy Leader 524 | . . . 14 20 32 40 . 20 . 30 20 30 40 40 10 20 32 94 . 40 2 40 . Allied During Kill 3125 | . . . . . 49 63 . 15 . 80 77 355 159 297 30 489 319 1082 2 39 . 69 . Successful Hack 177 | . . . 9 14 . 14 . 7 18 14 . 7 18 14 32 14 10 6 . . . . . Disable Machine 195 | . . . 15 . 15 . . . . . 30 . . 15 . . . 105 . 15 . . . Anti-Garrison Action 3000 | . . . . 500 . 600 . 350 . 50 . 400 . 800 . 200 . . . 50 . 50 . Destroy Structure 863 | . . . 7 145 . 45 . 26 . 20 7 154 50 82 2 30 74 132 . 12 6 71 . Partial Spotted 90 | . . . . 30 . . 30 . . . . . . . . . . . . . . 15 15 Lose Combat Pursuer 735 | . . 90 15 165 . 30 . 255 . 15 . 15 . . . . . . . . 60 15 75 Influence Decreases 14217 | . 15 84 102 186 856 566 1004 370 567 287 955 281 1634 338 903 546 1604 1168 943 703 404 372 329 Entered New Map 7507 | . . . 4 16 696 246 684 140 557 187 388 41 684 78 773 246 694 312 863 263 314 92 229 Time Decay 2005 | . 15 74 98 . 120 . 160 . 10 . 172 . 380 . 130 . 310 386 40 . 70 . 40 Lost Part 720 | . . 10 . 30 . 40 . 110 . . . . . . . . . 10 40 280 . 140 60 Lost Ally 2510 | . . . . 140 40 280 10 120 . 100 20 240 120 260 . 300 100 460 . 160 20 140 . Purge Threat 1475 | . . . . . . . 150 . . . 375 . 450 . . . 500 . . . . . . Squads Dispatched 40 | . 1 . 1 . 1 . 4 . 2 . 1 . 5 . 2 . 7 14 1 . 1 . . Investigation 10 | . . . . . 1 . 3 . 2 . . . 3 . . . . . . . 1 . . Extermination 4 | . . . . . . . . . . . . . 1 . . . 1 2 . . . . . Reinforcement 16 | . 1 . 1 . . . 1 . . . 1 . 1 . . . 2 8 1 . . . . Assault 6 | . . . . . . . . . . . . . . . 1 . 1 4 . . . . . Garrison 4 | . . . . . . . . . . . . . . . 1 . 3 . . . . . . Intercept . | . . . . . . . . . . . . . . . . . . . . . . . . Searches Triggered . | . . . . . . . . . . . . . . . . . . . . . . . . Construction Impeded 1 | . . . . . . . . . . . . . 1 . . . . . . . . . . Haulers Reinforced . | . . . . . . . . . . . . . . . . . . . . . . . . Active Scanning Responses . | . . . . . . . . . . . . . . . . . . . . . . . . Cargo Convoy Interrupts . | . . . . . . . . . . . . . . . . . . . . . . . . Stealth | -11 -10 -10 -8 -8 -8 -8 -7 -7 -7 -7 -6 -6 -5 -5 -4 -4 -3 -3 -2 -2 -1 -1 -1 --------- Run | Yrd Mat Sub Mat Gar Mat Gar Fac Gar Fac Gar Fac Gar Fac Gar Fac Gar Res Qua Res Gar Acc Gar Acc Distress Signals 14 | . . . . . 3 . . . . . 1 . . . . . . 7 . . 1 . 2 Communications Jammed . | . . . . . . . . . . . . . . . . . . . . . . . . Distress Signals . | . . . . . . . . . . . . . . . . . . . . . . . . Times Spotted 508 | . 1 12 7 42 9 42 4 43 . 16 14 44 16 36 6 47 17 69 8 23 9 24 19 Peak Tracking Total 23 | . 2 7 3 5 6 5 3 6 . 4 5 8 5 6 3 14 4 23 5 5 5 5 14 Tactical Retreats 28 | . . 2 1 7 . 2 . 11 . 1 . 1 . . . . . . . . 1 1 1 Traps | -11 -10 -10 -8 -8 -8 -8 -7 -7 -7 -7 -6 -6 -5 -5 -4 -4 -3 -3 -2 -2 -1 -1 -1 ------- Run | Yrd Mat Sub Mat Gar Mat Gar Fac Gar Fac Gar Fac Gar Fac Gar Fac Gar Res Qua Res Gar Acc Gar Acc Traps Triggered 42 | . . 3 1 5 . 9 . 2 . 1 . 2 . 4 . 3 . 3 . 1 2 5 1 Indirectly . | . . . . . . . . . . . . . . . . . . . . . . . . Trap Hack Attempts . | . . . . . . . . . . . . . . . . . . . . . . . . Triggered . | . . . . . . . . . . . . . . . . . . . . . . . . Disarmed . | . . . . . . . . . . . . . . . . . . . . . . . . Reprogrammed . | . . . . . . . . . . . . . . . . . . . . . . . . Reused . | . . . . . . . . . . . . . . . . . . . . . . . . Traps Extracted . | . . . . . . . . . . . . . . . . . . . . . . . . Installed . | . . . . . . . . . . . . . . . . . . . . . . . . Triggered . | . . . . . . . . . . . . . . . . . . . . . . . . Machines | -11 -10 -10 -8 -8 -8 -8 -7 -7 -7 -7 -6 -6 -5 -5 -4 -4 -3 -3 -2 -2 -1 -1 -1 ---------- Run | Yrd Mat Sub Mat Gar Mat Gar Fac Gar Fac Gar Fac Gar Fac Gar Fac Gar Res Qua Res Gar Acc Gar Acc Machines Disabled 44 | . . 1 1 7 1 5 . 4 . 1 2 5 . 5 . 2 . 7 . 2 . 1 . Max in Single Turn 2 | . . 1 1 2 . 1 . 1 . 1 1 1 . 1 . 1 . 1 . 1 . 1 . Garrison Relay 27 | . . . . 5 . 5 . 4 . 1 . 4 . 4 . 2 . . . 1 . 1 . Phase Generator 1 | . . . . 1 . . . . . . . . . . . . . . . . . . . Machines Repaired . | . . . . . . . . . . . . . . . . . . . . . . . . Machines Dismantled . | . . . . . . . . . . . . . . . . . . . . . . . . Machines Sabotaged . | . . . . . . . . . . . . . . . . . . . . . . . . Overloaded Fab Kills . | . . . . . . . . . . . . . . . . . . . . . . . . Hacking | -11 -10 -10 -8 -8 -8 -8 -7 -7 -7 -7 -6 -6 -5 -5 -4 -4 -3 -3 -2 -2 -1 -1 -1 --------- Run | Yrd Mat Sub Mat Gar Mat Gar Fac Gar Fac Gar Fac Gar Fac Gar Fac Gar Res Qua Res Gar Acc Gar Acc Machines Accessed 45 | . 1 . 3 3 1 3 8 2 1 1 1 2 5 1 2 2 2 3 2 1 1 . . Terminals 30 | . 1 . 2 3 . 3 4 2 . 1 . 2 3 1 1 2 1 2 1 1 . . . Fabricators 3 | . . . . . . . 2 . . . . . 1 . . . . . . . . . . Repair Stations . | . . . . . . . . . . . . . . . . . . . . . . . . Recycling Units . | . . . . . . . . . . . . . . . . . . . . . . . . Scanalyzers 1 | . . . . . . . . . . . . . . . . . . 1 . . . . . Garrison Access 11 | . . . 1 . 1 . 2 . 1 . 1 . 1 . 1 . 1 . 1 . 1 . . Total Hacks 94 | . 1 . 7 3 4 5 18 6 3 3 2 2 12 2 6 5 5 4 3 2 1 . . Successful 39 | . 1 . 4 2 3 2 5 1 3 1 1 2 2 1 3 1 3 1 2 . 1 . . Failed 55 | . . . 3 1 1 3 13 5 . 2 1 . 10 1 3 4 2 3 1 2 . . . Catastrophic 15 | . . . 1 1 . 1 7 1 . . . . 1 . 1 . . 1 1 . . . . Database Lockouts . | . . . . . . . . . . . . . . . . . . . . . . . . Manual 22 | . 1 . 1 . 3 . 4 . 1 . 1 . 1 . 4 . 3 2 1 . . . . Terminals 60 | . 1 . 6 3 . 5 10 6 . 3 . 2 7 2 2 5 2 3 1 2 . . . Fabricators 6 | . . . . . . . 3 . . . . . 3 . . . . . . . . . . Repair Stations . | . . . . . . . . . . . . . . . . . . . . . . . . Recycling Units . | . . . . . . . . . . . . . . . . . . . . . . . . Scanalyzers 1 | . . . . . . . . . . . . . . . . . . 1 . . . . . Garrison Access 27 | . . . 1 . 4 . 5 . 3 . 2 . 2 . 4 . 3 . 2 . 1 . . Terminal Hacks 18 | . . . 2 2 . 2 1 1 . 1 . 2 . 1 1 1 2 1 1 . . . . Record 1 | . . . . . . . . . . . . . . . . . 1 . . . . . . Open Door 4 | . . . . 1 . 1 . 1 . . . 1 . . . . . . . . . . . Open DSF 1 | . . . . . . . . . . . . . . . . . . . 1 . . . . Branch Access Points 1 | . . . . . . . . . . . . . . . . . 1 . . . . . . Emergency Access Points 3 | . . . . . . 1 . . . . . 1 . 1 . . . . . . . . . Recall Investigation 1 | . . . . . . . 1 . . . . . . . . . . . . . . . . Zone Layout 4 | . . . 2 . . . . . . . . . . . 1 . . 1 . . . . . Garrison Registry 2 | . . . . . . . . . . 1 . . . . . 1 . . . . . . . Patrol Navigation 1 | . . . . 1 . . . . . . . . . . . . . . . . . . . Fabricator Hacks 1 | . . . . . . . 1 . . . . . . . . . . . . . . . . Network Status 1 | . . . . . . . 1 . . . . . . . . . . . . . . . . Repair Station Hacks . | . . . . . . . . . . . . . . . . . . . . . . . . Recycling Unit Hacks . | . . . . . . . . . . . . . . . . . . . . . . . . Scanalyzer . | . . . . . . . . . . . . . . . . . . . . . . . . Garrison Access Hacks 12 | . . . 1 . 1 . 2 . 2 . 1 . 1 . 1 . 1 . 1 . 1 . . Unlock Access 11 | . . . 1 . 1 . 2 . 1 . 1 . 1 . 1 . 1 . 1 . 1 . . Coupler Status 1 | . . . . . . . . . 1 . . . . . . . . . . . . . . Unauthorized Hacks 8 | . 1 . 1 . 2 . 1 . 1 . . . 1 . 1 . . . . . . . . Terminals 2 | . 1 . 1 . . . . . . . . . . . . . . . . . . . . Botnet 1 | . . . 1 . . . . . . . . . . . . . . . . . . . . Skim 1 | . 1 . . . . . . . . . . . . . . . . . . . . . . Fabricators . | . . . . . . . . . . . . . . . . . . . . . . . . Repair Stations . | . . . . . . . . . . . . . . . . . . . . . . . . Recycling Units . | . . . . . . . . . . . . . . . . . . . . . . . . Scanalyzers . | . . . . . . . . . . . . . . . . . . . . . . . . Garrison Access 6 | . . . . . 2 . 1 . 1 . . . 1 . 1 . . . . . . . . Restock 1 | . . . . . 1 . . . . . . . . . . . . . . . . . . Reprogram 5 | . . . . . 1 . 1 . 1 . . . 1 . 1 . . . . . . . . Data Cores Recovered 2 | . . . 1 . . . . . . . . . . . . . . 1 . . . . . Used . | . . . . . . . . . . . . . . . . . . . . . . . . Hacking Detections 37 | . . . 3 1 1 2 6 2 1 1 1 1 5 1 2 2 2 3 1 1 1 . . Full Trace Events 8 | . . . . . 1 1 2 1 1 . . . 2 . . . . . . . . . . Feedback Events 2 | . . . . . . . 1 . . . . . 1 . . . . . . . . . . Corruption 2 | . . . . . . . 1 . . . . . 1 . . . . . . . . . . Feedback Blocked . | . . . . . . . . . . . . . . . . . . . . . . . . Robot Schematics Acquired 3 | . . . . . . . . . . . . . . . . . . 3 . . . . . Robots Built . | . . . . . . . . . . . . . . . . . . . . . . . . Authchips . | . . . . . . . . . . . . . . . . . . . . . . . . Time . | . . . . . . . . . . . . . . . . . . . . . . . . Total Robot Build Rating . | . . . . . . . . . . . . . . . . . . . . . . . . Part Schematics Acquired 19 | . . . . . . . . . . . . . . . . . . 19 . . . . . Parts Built . | . . . . . . . . . . . . . . . . . . . . . . . . Authchips . | . . . . . . . . . . . . . . . . . . . . . . . . Time . | . . . . . . . . . . . . . . . . . . . . . . . . Total Part Build Rating . | . . . . . . . . . . . . . . . . . . . . . . . . Part Studies Acquired . | . . . . . . . . . . . . . . . . . . . . . . . . Parts Repaired . | . . . . . . . . . . . . . . . . . . . . . . . . Time . | . . . . . . . . . . . . . . . . . . . . . . . . Parts Recycled . | . . . . . . . . . . . . . . . . . . . . . . . . Recycled Matter . | . . . . . . . . . . . . . . . . . . . . . . . . Retrieved Matter . | . . . . . . . . . . . . . . . . . . . . . . . . Retrieved Components . | . . . . . . . . . . . . . . . . . . . . . . . . Parts Scanalyzed . | . . . . . . . . . . . . . . . . . . . . . . . . Part Schematics Acquired . | . . . . . . . . . . . . . . . . . . . . . . . . Parts Damaged . | . . . . . . . . . . . . . . . . . . . . . . . . Bothacking | -11 -10 -10 -8 -8 -8 -8 -7 -7 -7 -7 -6 -6 -5 -5 -4 -4 -3 -3 -2 -2 -1 -1 -1 ------------ Run | Yrd Mat Sub Mat Gar Mat Gar Fac Gar Fac Gar Fac Gar Fac Gar Fac Gar Res Qua Res Gar Acc Gar Acc Used RIF Installer 10 | . . . . 1 . 2 . 2 . 2 . 1 . 1 . 1 . . . . . . . Coupler Efficiency 1 | . . . . . . . . 1 . . . . . . . . . . . . . . . Command Fork 1 | . . . . . . . . . . 1 . . . . . . . . . . . . . Robot Detection 1 | . . . . . . . . 1 . . . . . . . . . . . . . . . Watcher Feeds 1 | . . . . . . 1 . . . . . . . . . . . . . . . . . Patrol Navigation 1 | . . . . . . 1 . . . . . . . . . . . . . . . . . Program Shield 1 | . . . . . . . . . . 1 . . . . . . . . . . . . . Autooverride 1 | . . . . . . . . . . . . . . 1 . . . . . . . . . Autoassimilate 1 | . . . . . . . . . . . . 1 . . . . . . . . . . . Crosswire 1 | . . . . . . . . . . . . . . . . 1 . . . . . . . Robots Hacked 173 | . . . . 8 3 16 3 10 . 8 7 16 10 14 6 19 13 21 2 5 1 11 . Non-combat 17 | . . . . 2 . . 2 . . . 4 . 4 . 3 . 2 . . . . . . Combat 156 | . . . . 6 3 16 1 10 . 8 3 16 6 14 3 19 11 21 2 5 1 11 . Autooverrided 13 | . . . . . . . . . . . . . . . . 3 3 4 . 1 . 2 . Autoassimilated 25 | . . . . . . . . . . . . 1 2 4 1 3 1 9 . 2 . 2 . Robot Hacks Applied 157 | . . . . 8 3 18 5 11 . 8 10 15 13 10 6 13 16 8 2 2 2 7 . parse_system 1 | . . . . . . . . . . . . 1 . . . . . . . . . . . find_chute 1 | . . . . . . . . . . . 1 . . . . . . . . . . . . deconstruct_machine 1 | . . . . . . . . . . . . . . . 1 . . . . . . . . find_recycling 1 | . . . . . . . . . . . . . 1 . . . . . . . . . . ignore_parts 1 | . . . . . . . 1 . . . . . . . . . . . . . . . . purge_threat 13 | . . . . . . . 1 . . . 3 . 4 . . . 5 . . . . . . locate_traps 1 | . . . . . . . . . . . . . 1 . . . . . . . . . . block_reporting 3 | . . . . . . . . . . . 1 . 1 . 1 . . . . . . . . find_scanalyzer 1 | . . . . . . . . . . . . . . . . . . 1 . . . . . find_garrison 3 | . . . . . . . . . . . 1 . 1 . . . . . . . 1 . . link_fov 1 | . . . . . . . 1 . . . . . . . . . . . . . . . . reboot_propulsion 1 | . . . . . . . . . . . . . . . . . . 1 . . . . . disrupt_area 3 | . . . . . 1 . . . . . . . . . . . 1 1 . . . . . spike_heat 3 | . . . . . . . . . . . . 1 . . . 2 . . . . . . . overload_power 2 | . . . . . . . . . . . . . . . 1 . 1 . . . . . . amplify_resonance 15 | . . . . . . 3 . 3 . 1 1 1 1 3 . 1 . . . . . 1 . wipe_record 1 | . . . . . . . . . . . . . . . . . . . 1 . . . . disable_weapons 3 | . . . . . . . . 1 . . 1 1 . . . . . . . . . . . reboot_system 10 | . . . . . . 3 . 1 . 1 . . . . . . 2 1 . . . 2 . go_dormant 1 | . . . . . . 1 . . . . . . . . . . . . . . . . . overwrite_iff 22 | . . . . . . 6 . 6 . 3 1 2 . . . 4 . . . . . . . formatsys_low 5 | . . . . 2 . . 1 . . . . . 1 . 1 . . . . . . . . formatsys_high 63 | . . . . 6 2 5 1 . . 3 1 9 3 7 2 6 6 4 1 2 1 4 . formatsys_deep 1 | . . . . . . . . . . . . . . . . . 1 . . . . . . Relay Couplers Released 124 | . . . . 25 3 22 . 21 . 5 . 16 . 15 . 9 . . . 3 . 5 . Machine Destruction 115 | . . . . 22 . 22 . 18 . 5 . 16 . 15 . 9 . . . 3 . 5 . Programmers 9 | . . . . 3 3 . . 3 . . . . . . . . . . . . . . . Attached 79 | . . . . 4 2 11 4 6 . 5 1 9 1 11 . 6 7 . 1 5 . 6 . Crosswired 6 | . . . . . . . . . . . . . . . . 3 . . . 3 . . . Fabnet Peak Effective % . | . . . . . . . . . . . . . . . . . . . . . . . . Robots Rewired 23 | . . . . 5 . 2 . . . 2 . 10 . . 2 . . . . 2 . . . Allies Hacked 1 | . . . . . . . . . . 1 . . . . . . . . . . . . . Hacks Repelled . | . . . . . . . . . . . . . . . . . . . . . . . . Allies | -11 -10 -10 -8 -8 -8 -8 -7 -7 -7 -7 -6 -6 -5 -5 -4 -4 -3 -3 -2 -2 -1 -1 -1 -------- Run | Yrd Mat Sub Mat Gar Mat Gar Fac Gar Fac Gar Fac Gar Fac Gar Fac Gar Res Qua Res Gar Acc Gar Acc Total Allies 172 | . . . . 14 2 13 3 8 2 10 3 22 10 12 9 18 10 18 1 8 1 8 . Largest Group 22 | . . . . 7 8 8 3 2 2 5 7 10 14 17 19 22 18 21 1 3 . 4 . Highest-Rated Group 1102 | . . . . 126 142 142 78 57 32 210 280 459 455 586 782 944 1095 1102 64 229 . 254 . Highest-Rated Ally 148 | . . . . 25 23 31 32 32 16 95 90 148 148 49 56 116 142 116 64 119 . 69 . Total Orders 76 | . . . . 1 1 11 1 . . . . 4 1 29 1 22 1 4 . . . . . STAY 41 | . . . . . . 6 1 . . . . 1 1 17 . 13 . 2 . . . . . ROAM 2 | . . . . . . . . . . . . 1 . . . 1 . . . . . . . FOLLOW 14 | . . . . . . 1 . . . . . 2 . 8 . 2 . 1 . . . . . AID 18 | . . . . 1 1 4 . . . . . . . 4 1 5 1 1 . . . . . DROP 1 | . . . . . . . . . . . . . . . . 1 . . . . . . . Ally Attacks 1161 | . . . . 27 37 85 . 34 . 45 53 158 42 140 14 120 81 232 3 49 . 41 . Total Damage 31523 | . . . . 318 436 1151 . 829 . 1068 958 4828 1021 2361 341 3062 2906 8358 134 2280 . 1472 . Kills 212 | . . . . . 6 12 . 6 . 13 7 25 9 20 1 32 21 55 1 1 . 3 . Allies Corrupted 8 | . . . . . . 2 . . . 1 . . . 1 . . 3 1 . . . . . Allies Melted . | . . . . . . . . . . . . . . . . . . . . . . . . Intel | -11 -10 -10 -8 -8 -8 -8 -7 -7 -7 -7 -6 -6 -5 -5 -4 -4 -3 -3 -2 -2 -1 -1 -1 ------- Run | Yrd Mat Sub Mat Gar Mat Gar Fac Gar Fac Gar Fac Gar Fac Gar Fac Gar Res Qua Res Gar Acc Gar Acc Active Infowar (turns) 11205 | . . 179 . . . . . . . . 409 1850 889 2636 265 1658 692 1053 86 595 141 659 93 Optics 11026 | . . . . . . . . . . . 409 1850 889 2636 265 1658 692 1053 86 595 141 659 93 Terrain 179 | . . 179 . . . . . . . . . . . . . . . . . . . . . Robot Analysis Total . | . . . . . . . . . . . . . . . . . . . . . . . . Derelict Logs Recovered . | . . . . . . . . . . . . . . . . . . . . . . . . Drone Launches . | . . . . . . . . . . . . . . . . . . . . . . . . Drone Recoveries . | . . . . . . . . . . . . . . . . . . . . . . . . Exploration | -11 -10 -10 -8 -8 -8 -8 -7 -7 -7 -7 -6 -6 -5 -5 -4 -4 -3 -3 -2 -2 -1 -1 -1 ------------- Run | Yrd Mat Sub Mat Gar Mat Gar Fac Gar Fac Gar Fac Gar Fac Gar Fac Gar Res Qua Res Gar Acc Gar Acc Turns Passed 19415 | 46 198 448 515 2092 241 2106 330 1446 28 627 426 1850 889 2636 265 1658 692 1053 86 890 141 659 93 Spaces Moved 11994 | 48 119 324 523 1490 92 1101 383 919 22 388 304 1162 516 1347 145 744 375 707 50 427 246 408 154 Core 131 | 4 . . . . . . 2 . . . . . . . . . . . . 13 . 112 . Treads . | . . . . . . . . . . . . . . . . . . . . . . . . Legs 6630 | . . . . . . . . 775 22 388 304 1162 516 1347 145 744 375 707 50 95 . . . Wheels 512 | 44 119 324 25 . . . . . . . . . . . . . . . . . . . . Hover 1273 | . . . . . . . 330 144 . . . . . . . . . . . 319 246 234 . Flight 3448 | . . . 498 1490 92 1101 51 . . . . . . . . . . . . . . 62 154 Fastest Speed 5 | 50 80 80 40 40 80 80 48 48 120 120 120 105 140 140 140 140 130 115 115 48 44 13 5 Average Speed 102 | 77 80 80 77 79 80 80 54 109 120 120 120 113 140 140 140 140 134 121 115 73 46 71 15 Slowest Speed 550 | 80 80 95 80 80 80 80 500 240 120 120 120 140 140 140 140 140 140 130 115 450 62 550 105 Overloaded Moves 13 | . . . . . . . . . . . . . . . . . . . . . . . 13 Propulsion Burnouts . | . . . . . . . . . . . . . . . . . . . . . . . . Robots Hopped 9 | . . . . . . . . . . . . . . . . . . . . . . . 9 Potential Cave-ins 6 | . . . . . . . . . . . . . . . . . . . . . . 6 . Cave-ins Triggered . | . . . . . . . . . . . . . . . . . . . . . . . . Exploration Rate (%) 34 | 3 14 21 39 89 9 75 16 75 2 62 12 87 14 83 6 44 13 68 3 39 10 31 7 Regions Visited 23 Branch Regions 2 Pre-discovered Areas . | . . . . . . . . . . . . . . . . . . . . . . . . Known Exits Taken 11 | . . . 1 . 1 . 1 . 1 . 1 . 1 . 1 . 1 1 1 . 1 . . Unknown Exits Taken 3 | 1 1 1 . . . . . . . . . . . . . . . . . . . . . Scrap Searched . | . . . . . . . . . . . . . . . . . . . . . . . . Spaces Dug 28 | . . . 4 . . . . 1 . . . 2 2 1 . 6 1 1 . 4 3 3 . Terrain Destroyed 260 | . . . 6 189 . . . 1 . . . 2 2 1 . 6 1 1 . 4 3 44 . Melee 26 | . . . 4 . . . . 1 . . . 2 2 1 . 4 1 1 . 4 3 3 . Projectile 40 | . . . . . . . . . . . . . . . . . . . . . . 40 . AOE 193 | . . . 2 189 . . . . . . . . . . . 2 . . . . . . . Terrain Rammed . | . . . . . . . . . . . . . . . . . . . . . . . . Walls Destroyed . | . . . . . . . . . . . . . . . . . . . . . . . . Machines Disabled . | . . . . . . . . . . . . . . . . . . . . . . . . Actions | -11 -10 -10 -8 -8 -8 -8 -7 -7 -7 -7 -6 -6 -5 -5 -4 -4 -3 -3 -2 -2 -1 -1 -1 --------- Run | Yrd Mat Sub Mat Gar Mat Gar Fac Gar Fac Gar Fac Gar Fac Gar Fac Gar Res Qua Res Gar Acc Gar Acc Total 18022 | 53 201 481 600 2236 251 2207 495 1247 23 526 363 1615 665 2024 203 1322 546 850 74 841 259 726 214 Wait 4121 | . 65 132 7 407 145 833 76 157 2 82 20 266 121 582 45 513 129 66 16 198 1 190 68 Move 11949 | 47 118 323 522 1489 91 1099 382 917 21 386 303 1160 515 1345 144 742 374 706 49 425 245 406 140 Hop 5 | . . . . . . . . . . . . . . . . . . . . . . . 5 Pick Up 150 | . 7 2 17 20 . 17 12 13 . 6 3 18 1 11 . 3 1 7 . 6 . 6 . Fast Attach 131 | 6 . 2 8 5 1 7 5 13 . 1 3 4 1 3 1 6 1 3 . 37 4 20 . Attach 83 | . . 4 3 10 2 8 2 8 . 6 1 8 1 1 . 3 7 3 3 4 . 8 1 Detach 15 | . . . 2 2 1 . . 1 . . . . . . . 1 . 1 . 2 . 5 . Swap 90 | . 1 1 1 14 . 1 3 17 . 5 7 15 2 13 . 5 1 . 1 3 . . . Drop 174 | . . 3 11 20 1 13 3 21 . 8 10 33 . 6 . 6 . 5 1 10 1 22 . Fire 509 | . 10 14 22 109 7 32 11 16 . 15 15 44 19 21 13 23 28 27 2 56 2 23 . Melee 382 | . . . 7 15 3 72 . 66 . 12 1 49 4 31 . 16 5 27 2 48 5 19 . Ram 1 | . . . . . . . 1 . . . . . . . . . . . . . . . . Kick 6 | . . . . . . . . . . . . . 1 . . . . 4 . 1 . . . Crush . | . . . . . . . . . . . . . . . . . . . . . . . . Escape Stasis 252 | . . . . 89 . 86 . 18 . 4 . . . 11 . 3 . 1 . 13 1 26 . Rewire 154 | . . . . 56 . 39 . . . 1 . 18 . . . 1 . . . 38 . 1 . Trap . | . . . . . . . . . . . . . . . . . . . . . . . . Miscellaneous . | . . . . . . . . . . . . . . . . . . . . . . . . Route ------- -11/Scrapyard -10/Materials -10/Subcaves (discovered 2 exits: *Mat / [*Rec]) -8/Materials (discovered 2 exits: *Fac / Gar) -8/Garrison (discovered 4 exits: *Fac x3 / *Mat) -8/Materials -8/Garrison (discovered 3 exits: *Fac x3) -7/Factory (discovered 3 exits: [*Low] / Gar / Gar) -7/Garrison (discovered 3 exits: *Fac x3) -7/Factory -7/Garrison (discovered 3 exits: *Fac x3) -6/Factory (discovered 2 exits: [*Low] / Gar) -6/Garrison (discovered 3 exits: *Fac x3) -5/Factory (discovered 3 exits: *Fac / [*Upp] / Gar) -5/Garrison (discovered 3 exits: *Fac x3) -4/Factory -4/Garrison (discovered 3 exits: *Res x3) -3/Research (discovered 4 exits: *Res / *Qua x2 / Gar) -3/Quarantine -2/Research -2/Garrison -1/Access -1/Garrison -1/Access History --------- Turn | Location | Event 18 | -11/Scrapyard | Discovered new exit (range 15) 47 | -11/Scrapyard | Entered Materials 149 | -10/Materials | Discovered new exit (range 6) 245 | -10/Materials | Entered Subcaves 246 | -10/Subcaves | Approached by a straggling Scientist 304 | -10/Subcaves | Build established: Mutant 375 | -10/Subcaves | Discovered new exit (range 9) 377 | -10/Subcaves | Ambushed by Subdwellers from Twisted Machinery 442 | -10/Subcaves | Shifting Twisted Machinery released Battle Cannon 444 | -10/Subcaves | Shifting Twisted Machinery released Sub. Power Source 455 | -10/Subcaves | Lost 3 parts (1p1u1w) 502 | -10/Subcaves | A Subdweller sparked back to life 502 | -10/Subcaves | A Subdweller sparked back to life 502 | -10/Subcaves | A Subdweller sparked back to life 505 | -10/Subcaves | Discovered new exit (range 14) 628 | -10/Subcaves | Found Prototype Flight Unit 693 | -10/Subcaves | Entered Materials 693 | -8/Materials | Evolved 4 slots: Propulsion x2, Utility x2 719 | -8/Materials | Identified Flightbrick 720 | -8/Materials | Attached Flightbrick, gained temporary slots: Utility x3 1024 | -8/Materials | Discovered new exit (range 4) 1207 | -8/Materials | Identified exit to Garrison 1208 | -8/Materials | Entered Garrison 1560 | -8/Garrison | Triggered checkpoint 1615 | -8/Garrison | Rescued a captive Derelict 1637 | -8/Garrison | Garrison Relay disabled 1674 | -8/Garrison | Triggered checkpoint 1679 | -8/Garrison | Triggered checkpoint 1898 | -8/Garrison | Triggered checkpoint 1932 | -8/Garrison | Discovered new exit (range 14) 1939 | -8/Garrison | Discovered new exit (range 5) 2066 | -8/Garrison | Triggered checkpoint 2094 | -8/Garrison | Garrison Relay disabled 2187 | -8/Garrison | Lost 3 allies 2336 | -8/Garrison | Triggered checkpoint 2352 | -8/Garrison | Garrison Relay disabled 2482 | -8/Garrison | Discovered new exit (range 14) 2527 | -8/Garrison | Phase Generator disabled 2852 | -8/Garrison | Triggered checkpoint 2877 | -8/Garrison | Installed Relay Interface Framework 2905 | -8/Garrison | Discovered new exit (range 14) 2946 | -8/Garrison | Triggered checkpoint 2997 | -8/Garrison | Garrison Relay disabled 3019 | -8/Garrison | Garrison Relay disabled 3056 | -8/Garrison | Triggered checkpoint 3175 | -8/Garrison | Build established: Bothacker-Mutant 3300 | -8/Garrison | Entered Materials 3300 | -8/Materials | Accompanied by 7 allies 3314 | -8/Materials | Identified exit to Garrison 3541 | -8/Materials | Entered Garrison 3541 | -8/Garrison | Accompanied by 6 allies 3631 | -8/Garrison | Triggered checkpoint 3664 | -8/Garrison | Expanded RIF knowledge: Watcher Feeds 3672 | -8/Garrison | Garrison Relay disabled 3786 | -8/Garrison | Lost 3 allies 4391 | -8/Garrison | Triggered checkpoint 4407 | -8/Garrison | Triggered checkpoint 4414 | -8/Garrison | Triggered checkpoint 4448 | -8/Garrison | Lost 3 allies 4709 | -8/Garrison | Discovered new exit (range 10) 4753 | -8/Garrison | Triggered checkpoint 4773 | -8/Garrison | Garrison Relay disabled 5096 | -8/Garrison | Discovered new exit (range 11) 5127 | -8/Garrison | Triggered checkpoint 5158 | -8/Garrison | Garrison Relay disabled 5299 | -8/Garrison | Triggered checkpoint 5313 | -8/Garrison | Garrison Relay disabled 5335 | -8/Garrison | System corruption reached 10% 5371 | -8/Garrison | Expanded RIF knowledge: Patrol Navigation 5417 | -8/Garrison | Discovered new exit (range 11) 5460 | -8/Garrison | Garrison Relay disabled 5647 | -8/Garrison | Entered Factory 5647 | -7/Factory | Accompanied by 2 allies 5647 | -7/Factory | Evolved 2 slots: Utility x2 5776 | -7/Factory | Identified exit to Garrison 5934 | -7/Factory | Discovered new exit (range 14) 5947 | -7/Factory | Identified exit to Garrison 5977 | -7/Factory | Entered Garrison 5977 | -7/Garrison | Accompanied by 1 ally 6025 | -7/Garrison | Triggered checkpoint 6042 | -7/Garrison | Garrison Relay disabled 6093 | -7/Garrison | Triggered checkpoint 6198 | -7/Garrison | Lost 6 parts (1p4n1w) 6310 | -7/Garrison | Core integrity fell below 50% 6486 | -7/Garrison | Lost 3 parts (1p2n) 6562 | -7/Garrison | Discovered new exit (range 12) 6585 | -7/Garrison | Rescued a captive Derelict 6586 | -7/Garrison | Rescued a captive Derelict 6597 | -7/Garrison | Triggered checkpoint 6648 | -7/Garrison | Garrison Relay disabled 6660 | -7/Garrison | Expanded RIF knowledge: Robot Detection 6793 | -7/Garrison | Triggered checkpoint 6901 | -7/Garrison | Triggered checkpoint 6975 | -7/Garrison | Build established: Botlord-Mutant 6978 | -7/Garrison | Garrison Relay disabled 7045 | -7/Garrison | Discovered new exit (range 12) 7249 | -7/Garrison | Discovered new exit (range 11) 7265 | -7/Garrison | Expanded RIF knowledge: Coupler Efficiency 7313 | -7/Garrison | Triggered checkpoint 7321 | -7/Garrison | Garrison Relay disabled 7423 | -7/Garrison | Entered Factory 7441 | -7/Factory | Identified exit to Garrison 7451 | -7/Factory | Entered Garrison 7451 | -7/Garrison | Accompanied by 2 allies 7491 | -7/Garrison | Triggered checkpoint 7554 | -7/Garrison | Discovered new exit (range 67) 7554 | -7/Garrison | Discovered new exit (range 62) 7554 | -7/Garrison | Discovered new exit (range 85) 7590 | -7/Garrison | Garrison Relay disabled 7765 | -7/Garrison | P-60 Hacker assimilated allied Gladiator 4a 7771 | -7/Garrison | Core integrity fell below 20% 7805 | -7/Garrison | Lost 4 allies 7837 | -7/Garrison | Found embedded Infiltrators 7885 | -7/Garrison | Triggered checkpoint 7978 | -7/Garrison | Expanded RIF knowledge: Command Fork 8008 | -7/Garrison | Expanded RIF knowledge: Program Shield 8078 | -7/Garrison | Entered Factory 8078 | -6/Factory | Accompanied by 4 allies 8078 | -6/Factory | Evolved 2 slots: Utility x2 8441 | -6/Factory | Discovered new exit (range 6) 8460 | -6/Factory | Identified exit to Garrison 8504 | -6/Factory | Entered Garrison 8504 | -6/Garrison | Accompanied by 5 allies 8532 | -6/Garrison | Spotted B-86 Titan 8562 | -6/Garrison | Rewired B-90 Cyclops 8571 | -6/Garrison | Allies destroyed B-86 Titan 8661 | -6/Garrison | P-60 Hacker assimilated allied Soldier 5a 8712 | -6/Garrison | Triggered checkpoint 8728 | -6/Garrison | Expanded RIF knowledge: Autoassimilate 8790 | -6/Garrison | Garrison Relay disabled 8858 | -6/Garrison | Triggered checkpoint 8914 | -6/Garrison | Triggered checkpoint 8968 | -6/Garrison | Triggered checkpoint 9006 | -6/Garrison | Triggered checkpoint 9010 | -6/Garrison | Triggered checkpoint 9090 | -6/Garrison | Triggered checkpoint 9128 | -6/Garrison | Garrison Relay disabled 9238 | -6/Garrison | Lost 7 allies 9294 | -6/Garrison | Discovered new exit (range 9) 9387 | -6/Garrison | Identified exit to Factory 9422 | -6/Garrison | Found Relay Coupler [Proto] 9424 | -6/Garrison | Found Relay Coupler [Proto] 9596 | -6/Garrison | Triggered checkpoint 9655 | -6/Garrison | Garrison Relay disabled 9822 | -6/Garrison | Discovered exit to Factory (range 11) 9956 | -6/Garrison | Triggered checkpoint 9972 | -6/Garrison | Garrison Relay disabled 10000 | -6/Garrison | Discovered exit to Factory (range 21) 10186 | -6/Garrison | Spotted B-75 Beast 10199 | -6/Garrison | Destroyed B-75 Beast 10304 | -6/Garrison | Found Relay Coupler [Proto] 10354 | -6/Garrison | Entered Factory 10354 | -5/Factory | Accompanied by 10 allies 10354 | -5/Factory | Evolved 2 slots: Utility x2 10383 | -5/Factory | Discovered new exit (range 3) 10430 | -5/Factory | Discovered new exit (range 4) 11016 | -5/Factory | Lost 4 allies 11158 | -5/Factory | Identified exit to Garrison 11243 | -5/Factory | Entered Garrison 11243 | -5/Garrison | Accompanied by 14 allies 11465 | -5/Garrison | Triggered checkpoint 11498 | -5/Garrison | Garrison Relay disabled 12129 | -5/Garrison | Triggered checkpoint 12129 | -5/Garrison | Triggered checkpoint 12142 | -5/Garrison | Triggered checkpoint 12165 | -5/Garrison | Triggered checkpoint 12184 | -5/Garrison | Lost 5 allies 12404 | -5/Garrison | Discovered new exit (range 9) 12421 | -5/Garrison | Triggered checkpoint 12456 | -5/Garrison | Garrison Relay disabled 12561 | -5/Garrison | Discovered new exit (range 10) 12601 | -5/Garrison | Triggered checkpoint 12611 | -5/Garrison | Garrison Relay disabled 12822 | -5/Garrison | Garrison Relay disabled 12831 | -5/Garrison | Triggered checkpoint 12884 | -5/Garrison | Expanded RIF knowledge: Autooverride 12904 | -5/Garrison | Discovered new exit (range 3) 13879 | -5/Garrison | Entered Factory 13879 | -4/Factory | Accompanied by 12 allies 13879 | -4/Factory | Evolved 2 slots: Utility x2 13918 | -4/Factory | Garrison activated, responded to threat 13977 | -4/Factory | Identified exit to Garrison 14129 | -4/Factory | First assault squad dispatched 14144 | -4/Factory | Entered Garrison 14144 | -4/Garrison | Accompanied by 19 allies 14524 | -4/Garrison | Triggered checkpoint 14548 | -4/Garrison | Garrison Relay disabled 14590 | -4/Garrison | Triggered checkpoint 14668 | -4/Garrison | Triggered checkpoint 14668 | -4/Garrison | Spotted B-86 Titan 14671 | -4/Garrison | Autoassimilated Titan 7a with RIF 14675 | -4/Garrison | Triggered checkpoint 14696 | -4/Garrison | Triggered checkpoint 14728 | -4/Garrison | Discovered new exit (range 26) 14728 | -4/Garrison | Discovered new exit (range 39) 14728 | -4/Garrison | Discovered new exit (range 54) 14747 | -4/Garrison | Lost 15 allies 14752 | -4/Garrison | Triggered checkpoint 14798 | -4/Garrison | Expanded RIF knowledge: Crosswire 14822 | -4/Garrison | Triggered checkpoint 14828 | -4/Garrison | Triggered checkpoint 14850 | -4/Garrison | Triggered checkpoint 14906 | -4/Garrison | Garrison Relay disabled 15143 | -4/Garrison | Spotted B-86 Titan 15146 | -4/Garrison | Assimilated Titan 7b with formatsys_high 15684 | -4/Garrison | Triggered checkpoint 15802 | -4/Garrison | Entered Research 15802 | -3/Research | Accompanied by 15 allies 15802 | -3/Research | Evolved 2 slots: Propulsion x1, Utility x1 16041 | -3/Research | Identified exit to Quarantine 16225 | -3/Research | Spotted B-86 Titan 16245 | -3/Research | Assimilated Titan 8a with formatsys_high 16246 | -3/Research | Garrison activated, responded to threat 16299 | -3/Research | Lost 3 allies 16302 | -3/Research | First assault squad dispatched 16313 | -3/Research | Assimilated Heavy ARC 8a with formatsys_deep 16324 | -3/Research | Discovered new exit (range 22) 16414 | -3/Research | Identified exit to Garrison 16494 | -3/Research | Entered Quarantine 16494 | -3/Quarantine | Accompanied by 15 allies 16514 | -3/Quarantine | Found Alien Artifact 16522 | -3/Quarantine | Identified Subatomic Replicator 16794 | -3/Quarantine | Found Alien Slashing Weapon 16984 | -3/Quarantine | Found Alien Artifact 17405 | -3/Quarantine | High security lockdown imminent 17485 | -3/Quarantine | High security lockdown engaged 17505 | -3/Quarantine | Found Alien Energy Cannon 17539 | -3/Quarantine | Discovered new exit (range 8) 17546 | -3/Quarantine | Identified exit to Research 17547 | -3/Quarantine | Entered Research 17547 | -2/Research | Evolved 2 slots: Utility x1, Weapon x1 17550 | -2/Research | Identified Sigix Broadsword 17564 | -2/Research | Identified exit to DSF 17574 | -2/Research | Lost 17 allies 17631 | -2/Research | Identified exit to Garrison 17633 | -2/Research | Entered Garrison 17633 | -2/Garrison | Accompanied by 1 ally 17639 | -2/Garrison | Lost 4 parts (3u1w) 17805 | -2/Garrison | Triggered checkpoint 17852 | -2/Garrison | System corruption reached 10% 17984 | -2/Garrison | Lost 16 parts (1p3n8u4w) 17985 | -2/Garrison | Core integrity fell below 50% 18021 | -2/Garrison | System corruption reached 30% 18055 | -2/Garrison | Core integrity fell below 20% 18092 | -2/Garrison | Lost 10 parts (1p3n3u3w) 18286 | -2/Garrison | Spotted Executioner 18286 | -2/Garrison | Spotted Executioner 18287 | -2/Garrison | Autoassimilated Executioner with RIF 18292 | -2/Garrison | Destroyed Executioner 18323 | -2/Garrison | Found Prototype Device 18323 | -2/Garrison | Identified Adv. Kinecellerator 18328 | -2/Garrison | Found Prototype Processor 18328 | -2/Garrison | Identified Exp. Targeting Computer 18330 | -2/Garrison | Found Prototype Processor 18330 | -2/Garrison | Identified Exp. Core Analyzer 18347 | -2/Garrison | Garrison Relay disabled 18408 | -2/Garrison | Spotted B-90 Cyclops 18449 | -2/Garrison | Triggered checkpoint 18453 | -2/Garrison | Triggered checkpoint 18488 | -2/Garrison | Discovered new exit (range 9) 18492 | -2/Garrison | Identified exit to Access 18495 | -2/Garrison | Lost 3 allies 18523 | -2/Garrison | Entered Access 18523 | -1/Access | Evolved 2 slots: Power x1, Propulsion x1 18664 | -1/Access | Identified exit to Garrison 18664 | -1/Access | Entered Garrison 18762 | -1/Garrison | Garrison Relay disabled 18766 | -1/Garrison | Triggered checkpoint 18841 | -1/Garrison | Lost 3 allies 18926 | -1/Garrison | Triggered checkpoint 19004 | -1/Garrison | Spotted B-99 Colossus 19008 | -1/Garrison | Triggered checkpoint 19035 | -1/Garrison | Identified Core Cannon 19062 | -1/Garrison | Lost 3 allies 19143 | -1/Garrison | Destroyed B-99 Colossus 19322 | -1/Garrison | Discovered new exit (range 12) 19323 | -1/Garrison | Entered Access 19350 | -1/Access | Lost 9 parts (1p6u2w) 19416 | -1/Access | System corruption reached 10% 19416 | -1/Access | Self-destructed Last Messages --------------- RIF authorized. LOCATION=UNKNOWN GOAL=ESCAPE 19326_ ALERT: Access garrison breached. 19326_ ALERT: Machine network offline. 19343_ System corrupted: Energy discharge (-31). 19364_ System corrupted: Matter fused (-9). 19385_ W-44 Eye sends out distress signal. 19387_ System corrupted: Component data lost. 19398_ Detecting nearby Garrison Access. 19400_ Garrison Access under remote control. 19405_ System corrupted: Energy discharge (-23). 19410_ W-44 Eye sends out distress signal. 19411_ Adv. Surge Thruster destroyed. 19414_ K-01 Serf destroyed. 19415_ Triggered EM Surge Trap. 19415_ The floor emits a surge of raw power. 19415_ System corrupted (+3). 19416_ Adv. Surge Thruster destroyed. 19416_ Adv. Remote Datajack destroyed. Map ----- +----------------------------------------------------+ | ?????????????????????????????????????????????????? | | ?????????????????????????????????????????????????? | | ?????????????????????????????????????????????????? | | ?????????????????????????????????????????????????? | | ?????????????????????????????????????????????????# | | ???????????????????????????????????????????? ? | | ???????????????????????????????????????????# | | ???????????????????????????????????????????# | | ???????????????????????????????????????????# | | ???????????????????????????????????????????# | | ??????????####?????????????????????????????# | | ????????? ????????????????????????????# "" | | ????????? ????????????????????????????# """" | | ???????? ???????????????????????????# """" | | ???????? ??????????????????????????? "" | | ???????? ???????????????????????????? | | ???????? ????????????????????????????? | | ????????? ###+########################### | | ???????????# p | | ???????????# | | ???????????# ^ | | ???????????+ | | ???????????# | | ???????????# p | | ???????????# p | | ???????????######## R @##########/######+###### | | ??????????????????# *%#??????? ???# ???? | | ??????????????????# =#????? ?# ?? | | ??????????????????#A #???? " # ? | | ??????????????????# #??? """" # " | | ??????????????????#gg #??# """"" # """ | | ??????????????????# #??# """""# """" | | ????????????????? #??# """" # """ | | ???????????????? #??# " # ""? | | ??????????????? #??# ??# ?? | | ?????????????? #??# ????# ?? | | ????????????? #??# ????? ? | | ????????????t ???? ????? ?? | | ???????????# ???#########????? ??? | | ???????????####+##+#######?????????????????##????? | | ?????????????????????????????????????????????????? | | ?????????????????????????????????????????????????? | | ?????????????????????????????????????????????????? | | ?????????????????????????????????????????????????? | | ?????????????????????????????????????????????????? | | ?????????????????????????????????????????????????? | | ?????????????????????????????????????????????????? | | ?????????????????????????????????????????????????? | | ?????????????????????????????????????????????????? | | ?????????????????????????????????????????????????? | +----------------------------------------------------+ Best States ------------- Heat Dissipation 87 Energy Generation 29 Energy Capacity 350 Matter Stores 540 Matter Capacity 550 Sight Range 22 Terrain Scan Range 16 Terrain Scan Density 10 Armor Coverage 1050 Resistance: TH 15 Propulsion Shielding 66 Weapon Shielding 33 Evasion (%) 67 Targeting Accuracy 12 Melee Accuracy 6 Target Analysis 12 Core Analysis 8 Armor Integrity Analysis 40 Offensive Hacking 10 Relay Coupler Types 10 Relay Coupler Value 173 Item Schematics ----------------- Spectral Analyzer | -3/Quarantine | Archive Prc. Phase Gun | -3/Quarantine | Archive Exp. Thermal Defense Suite | -3/Quarantine | Archive Exp. Flexi-carbon Leg | -3/Quarantine | Archive Imp. Matter Compressor | -3/Quarantine | Archive Com. Particle Reactor | -3/Quarantine | Archive Neutron Missile Launcher | -3/Quarantine | Archive Hvy. Antimatter Reactor | -3/Quarantine | Archive Thunder Hammer | -3/Quarantine | Archive Adv. Matter Compressor | -3/Quarantine | Archive Thermal Defense Suite | -3/Quarantine | Archive Plasma Sword | -3/Quarantine | Archive Hvy. Proton Cannon | -3/Quarantine | Archive Gravity Neutralizer | -3/Quarantine | Archive Imp. Diametric Drive | -3/Quarantine | Archive Diametric Drive | -3/Quarantine | Archive Adv. Remote Shield | -3/Quarantine | Archive Lgt. Antimatter Cannon | -3/Quarantine | Archive Prc. Energy Filter | -3/Quarantine | Archive Robot Schematics ------------------ K-01 Serf | -3/Quarantine | Archive R-06 Scavenger | -3/Quarantine | Archive W-44 Eye | -3/Quarantine | Archive Fabricated ------------ Nothing Repaired ---------- Nothing Studied --------- None Alien Tech Used ----------------- Subatomic Replicator Sigix Broadsword Core Cannon Achievements -------------- Deep Understanding IP Theft Challenges ------------ None Game ------ Seed TractorAntimatterExpander Manual? 0 Play Time 03:00:17 Cumulative 574.3 hours Start 2025.11.22 @ 21:50:59 End 2025.11.23 @ 11:24:44 Sessions 3 Manual Loads 0 Difficulty Rogue Special Mode None Game No. 909 Rogue 754 Adventurer 148 Explorer 7 Win Type - Total 27 Types 21/1/4/1/0/0/0/0/0/0 Lore% 81 Gallery% 84 Achievement% 69 Wizard Run 0 Options --------- Layout 1 ASCII 0 Keyboard 0 Movement Numpad Keybinds 0 Fullscreen 2 Font 24/Smallcaps Map View 50x40 Zoom Use 0% Tactical HUD 1 Map Filters NONE Filters NONE Steam 1 RUN: 9833f438-f447-41af-98ef-0d21e778708b